bitfinex/quotes_BTCUSD_20240717
["timestamp","ask_amount","ask_price","bid_price","bid_amount"]
[1721194936071,0.00084,65910.0,65909.0,1.95901915]
[1721194936303,0.00084,65910.0,65909.0,1.97447099]
[1721194936506,0.00084,65910.0,65909.0,2.16340232]
[1721194936676,0.00184,65910.0,65909.0,2.16440232]
[1721194937147,0.00184,65910.0,65909.0,1.95724845]
[1721194937354,0.00284,65910.0,65909.0,2.16717329]
[1721194937573,0.00284,65910.0,65909.0,2.16440232]
[1721194938190,0.00284,65910.0,65909.0,1.95724845]
[1721194938436,0.00284,65910.0,65909.0,1.9093293]
[1721194938607,0.00284,65910.0,65909.0,1.53968252]
[1721194938807,0.00284,65910.0,65909.0,1.45708252]
[1721194939211,0.00284,65910.0,65909.0,1.76053052]
[1721194939592,0.00184,65910.0,65909.0,1.75953052]
[1721194939793,0.00184,65910.0,65909.0,1.45608252]
[1721194940007,0.00284,65910.0,65909.0,1.45708252]
[1721194940396,0.00184,65910.0,65909.0,1.45608252]
[1721194940603,0.00084,65910.0,65909.0,1.45608252]
[1721194940778,0.00284,65910.0,65909.0,1.76053052]
[1721194941395,0.00384,65910.0,65909.0,1.45708252]
[1721194942020,0.00284,65910.0,65909.0,1.45608252]
[1721194942224,0.00384,65910.0,65909.0,1.45709391]
[1721194945009,0.00384,65910.0,65909.0,1.45709388]
[1721194945377,0.00384,65910.0,65909.0,1.80846103]
[1721194945572,0.00384,65910.0,65909.0,1.58711303]
[1721194945773,0.00384,65910.0,65909.0,1.53918994]
[1721194946043,0.00384,65910.0,65909.0,1.58710909]
[1721194946424,0.00384,65910.0,65909.0,1.53818994]
[1721194946641,0.00284,65910.0,65909.0,1.53818994]
[1721194946830,0.00384,65910.0,65909.0,1.53918994]
[1721194947390,0.00384,65910.0,65909.0,1.35708994]
[1721194948017,0.00284,65910.0,65909.0,1.35608994]
[1721194948420,0.00384,65910.0,65909.0,1.35708994]
[1721194948855,0.00384,65910.0,65909.0,1.70845709]
[1721194949012,0.00384,65910.0,65909.0,1.35709031]
[1721194949208,0.00384,65910.0,65909.0,1.40500946]
[1721194949831,0.00384,65910.0,65909.0,1.35709031]
[1721194950860,0.00384,65910.0,65909.0,1.35986128]
[1721194951863,0.00384,65910.0,65909.0,1.35709031]
[1721194952061,0.00384,65910.0,65909.0,1.40500946]
[1721194952265,0.00384,65910.0,65909.0,1.27904623]
[1721194952464,0.14634,65910.0,65909.0,0.89926029]
[1721194952867,0.17342231,65910.0,65909.0,0.89926029]
[1721194953249,0.09602231,65910.0,65909.0,0.89926029]
[1721194953885,0.09602231,65910.0,65909.0,0.77329734]
[1721194954092,0.09602231,65910.0,65909.0,0.89927137]
[1721194954312,0.09302231,65910.0,65909.0,1.20171937]
[1721194954745,0.09302231,65910.0,65909.0,1.20271937]
[1721194955797,0.09307542,65910.0,65909.0,1.20271937]
[1721194957628,0.00084,65910.0,65909.0,2.06826826]
[1721194958980,0.00084,65910.0,65909.0,2.0682583]
[1721194959802,0.00084,65910.0,65909.0,2.89696857]
[1721194959986,0.00084,65910.0,65909.0,2.99696857]
[1721194960191,0.00084,65910.0,65909.0,3.11072846]
[1721194960508,0.0661,65932.0,65927.0,0.04791915]
[1721194960670,0.0661,65932.0,65931.0,0.45502]
[1721194960869,0.09328841,65932.0,65931.0,1.18767807]
[1721194961931,0.12128841,65932.0,65931.0,1.18767807]
[1721194962222,0.12121126,65932.0,65931.0,1.061714]
[1721194962424,0.10721126,65932.0,65931.0,1.061714]
[1721194962799,0.0801,65932.0,65931.0,1.061714]
[1721194964358,0.0801,65932.0,65931.0,1.07327563]
[1721194964558,0.0941,65932.0,65931.0,1.07327563]
[1721194967507,0.028,65932.0,65931.0,1.22765737]
[1721194969241,0.028,65932.0,65931.0,1.07327563]
[1721194969466,0.1078,65932.0,65931.0,1.07327563]
[1721194973018,0.17618085,65932.0,65931.0,0.16323463]
[1721194973213,0.35498228,65932.0,65931.0,0.01156163]
[1721194973410,0.65832428,65932.0,65931.0,0.01156163]
[1721194973649,0.15376785,65925.0,65924.0,0.00277097]
[1721194973853,0.90987585,65920.0,65919.0,0.00277097]
[1721194974081,0.60648385,65919.0,65918.0,0.04911594]
[1721194974290,0.30308385,65918.0,65917.0,0.472]
[1721194974493,0.00208085,65910.0,65908.0,0.151725]
[1721194974667,0.1493,65913.0,65908.0,0.151725]
[1721194974668,0.00208085,65909.0,65908.0,0.151725]
[1721194975348,0.00208085,65905.0,65903.0,0.775475]
[1721194975493,0.00208085,65904.0,65903.0,0.455213]
[1721194975926,0.00208085,65906.0,65905.0,0.151733]
[1721194976695,0.08508085,65907.0,65905.0,0.151733]
[1721194977082,0.00208085,65906.0,65905.0,0.151733]
[1721194977671,0.08508085,65907.0,65906.0,0.151731]
[1721194977877,0.12022624,65907.0,65906.0,0.151731]
[1721194978058,0.13022624,65907.0,65906.0,0.151731]
[1721194978293,0.12816033,65907.0,65906.0,0.455193]
[1721194978449,0.11816033,65907.0,65906.0,0.455193]
[1721194978707,0.083,65907.0,65906.0,0.455193]
[1721194979276,0.093,65907.0,65906.0,0.455193]
[1721194980602,0.0627,65912.0,65911.0,0.151719]
[1721194981231,0.09782415,65912.0,65911.0,0.151719]
[1721194981605,0.099905,65912.0,65911.0,0.151719]
[1721194982320,0.00208085,65910.0,65909.0,0.151722]
[1721194982893,0.00208085,65903.0,65902.0,0.304404]
[1721194983306,0.00208085,65903.0,65902.0,0.456144]
[1721194983518,0.0646,65909.0,65902.0,0.304404]
[1721194983519,0.00208085,65905.0,65902.0,0.304404]
[1721194984134,0.00208085,65907.0,65906.0,0.151731]
[1721194985670,0.01408085,65907.0,65906.0,0.151731]
[1721194985812,0.012,65907.0,65906.0,0.455193]
[1721194986251,0.012,65907.0,65906.0,1.281317]
[1721194987105,0.012,65907.0,65906.0,1.062117]
[1721194987311,0.025,65907.0,65906.0,1.062117]
[1721194988087,0.036,65907.0,65906.0,1.062117]
[1721194988795,0.036,65907.0,65906.0,1.281317]
[1721194990090,0.02459733,65907.0,65906.0,1.281317]
[1721194990291,0.02459733,65907.0,65906.0,1.43569874]
[1721194990493,0.02659733,65907.0,65906.0,1.78707989]
[1721194990725,0.02959733,65907.0,65906.0,1.73916074]
[1721194991347,0.02959733,65907.0,65906.0,1.062117]
[1721194993032,0.02959733,65907.0,65906.0,1.07374334]
[1721194995498,0.09389733,65907.0,65906.0,1.07466734]
[1721194995958,0.02959733,65907.0,65906.0,1.07466734]
[1721194997805,0.02959733,65907.0,65906.0,1.07456734]
[1721194998010,0.02959733,65907.0,65906.0,1.89651108]
[1721194998214,0.02959733,65907.0,65906.0,1.94443023]
[1721194998387,0.02959733,65907.0,65906.0,1.89651108]
[1721194999394,0.02959733,65907.0,65906.0,1.94443023]
[1721194999616,0.02959733,65907.0,65906.0,1.89651108]
[1721194999996,0.02959733,65907.0,65906.0,1.89631108]
[1721195000201,0.02959733,65907.0,65906.0,2.02228264]
[1721195002218,0.02959733,65907.0,65906.0,2.07020179]
[1721195002821,0.02959733,65907.0,65906.0,2.07010179]
[1721195003298,0.00084,65910.0,65909.0,1.41343515]
[1721195003593,0.00084,65910.0,65909.0,1.83388845]
[1721195003840,0.00084,65910.0,65909.0,1.79757468]
[1721195004425,0.00184,65910.0,65909.0,1.84549383]
[1721195004857,0.00184,65910.0,65909.0,1.79757468]
[1721195005127,0.00184,65910.0,65909.0,1.79857468]
[1721195005128,0.00284,65910.0,65909.0,1.79857468]
[1721195005547,0.00284,65910.0,65909.0,2.01777468]
[1721195006250,0.00084,65910.0,65909.0,2.01677468]
[1721195006499,0.00184,65910.0,65909.0,2.01677468]
[1721195006727,0.00284,65910.0,65909.0,2.06569383]
[1721195006961,0.00284,65910.0,65909.0,2.06569137]
[1721195008367,0.00284,65910.0,65909.0,2.01777222]
[1721195010200,0.00284,65910.0,65909.0,1.89181631]
[1721195010432,0.00284,65910.0,65909.0,2.01777222]
[1721195013316,0.00284,65910.0,65909.0,1.87767222]
[1721195013517,0.00284,65910.0,65909.0,1.35502992]
[1721195013736,0.14034,65910.0,65909.0,1.20064818]
[1721195014382,0.14034,65910.0,65909.0,0.85883857]
[1721195015258,0.14242085,65910.0,65909.0,0.85883857]
[1721195015865,0.14034,65910.0,65909.0,0.85883857]
[1721195016277,0.13834,65910.0,65909.0,0.77023857]
[1721195016634,0.13934,65910.0,65909.0,0.77023857]
[1721195019223,0.06374,65910.0,65909.0,0.77023857]
[1721195019396,0.00184,65910.0,65909.0,1.07368657]
[1721195019807,0.00184,65910.0,65909.0,1.19966167]
[1721195020102,0.00184,65910.0,65909.0,1.19966036]
[1721195020491,0.00084,65910.0,65909.0,1.19966036]
[1721195020687,0.00084,65910.0,65909.0,1.20066036]
[1721195021095,0.00084,65910.0,65909.0,1.19966036]
[1721195021291,0.00084,65910.0,65909.0,1.20066036]
[1721195022399,0.00184,65910.0,65909.0,1.6584901]
[1721195022839,0.00084,65910.0,65909.0,1.6574901]
[1721195023052,0.00084,65910.0,65909.0,1.6584901]
[1721195023277,0.00084,65910.0,65909.0,1.65848527]
[1721195023477,0.00084,65910.0,65909.0,1.65748527]
[1721195023682,0.00184,65910.0,65909.0,1.65848541]
[1721195024048,0.00284,65910.0,65909.0,1.87738541]
[1721195025534,0.00284,65910.0,65909.0,1.41955567]
[1721195025662,0.00184,65910.0,65909.0,1.41955567]
[1721195025870,0.00084,65910.0,65909.0,1.41855567]
[1721195026087,0.00184,65910.0,65909.0,1.41855567]
[1721195026517,0.00084,65910.0,65909.0,1.41955664]
[1721195026720,0.00184,65910.0,65909.0,1.41955664]
[1721195027128,0.00184,65910.0,65909.0,1.41855664]
[1721195027972,0.00084,65910.0,65909.0,1.41855664]
[1721195028270,0.00084,65910.0,65909.0,1.41955664]
[1721195029420,0.00084,65910.0,65909.0,1.57293838]
[1721195029772,0.00084,65910.0,65909.0,1.57293781]
[1721195030172,0.00184,65910.0,65909.0,1.57293781]
[1721195030399,0.00184,65910.0,65909.0,1.57393781]
[1721195032235,0.00084,65910.0,65909.0,1.57393781]
[1721195032489,0.00184,65910.0,65909.0,1.57393781]
[1721195033143,0.00184,65910.0,65909.0,1.57293781]
[1721195033666,0.00284,65910.0,65909.0,1.57393781]
[1721195033837,0.00184,65910.0,65909.0,1.57393781]
[1721195035831,0.00284,65910.0,65909.0,1.57393781]
[1721195036228,0.00284,65910.0,65909.0,1.57393779]
[1721195037066,0.00184,65910.0,65909.0,1.57393779]
[1721195037236,0.00084,65910.0,65909.0,1.57293779]
[1721195037637,0.00084,65910.0,65909.0,1.57393779]
[1721195037835,0.00084,65910.0,65909.0,1.57293779]
[1721195038240,0.00184,65910.0,65909.0,1.57393779]
[1721195038847,0.00284,65910.0,65909.0,1.57393779]
[1721195039265,0.00184,65910.0,65909.0,1.41955605]
[1721195040063,0.00184,65910.0,65909.0,1.41855605]
[1721195040270,0.00084,65910.0,65909.0,1.41855605]
[1721195040712,0.00084,65910.0,65909.0,1.41955605]
[1721195041430,0.00084,65910.0,65909.0,1.41855605]
[1721195041843,0.00184,65910.0,65909.0,1.41955605]
[1721195042252,0.00084,65910.0,65909.0,1.41955605]
[1721195042485,0.00184,65910.0,65909.0,1.41955605]
[1721195043833,0.06484,65910.0,65909.0,1.41955605]
[1721195044036,0.14294,65910.0,65909.0,1.20065605]
[1721195044288,0.14294,65910.0,65909.0,1.28825605]
[1721195044691,0.14194,65910.0,65909.0,1.28825605]
[1721195044969,0.14194,65910.0,65909.0,1.16228657]
[1721195045173,0.14194,65910.0,65909.0,1.28725617]
[1721195046824,0.00084,65910.0,65909.0,1.44163791]
[1721195046992,0.00084,65910.0,65909.0,1.58003791]
[1721195047347,0.00084,65910.0,65909.0,1.58103791]
[1721195048126,0.00184,65910.0,65909.0,1.58103791]
[1721195048308,0.00184,65910.0,65909.0,1.71233548]
[1721195048708,0.00184,65910.0,65909.0,1.58636831]
[1721195048937,0.00184,65910.0,65909.0,1.71233548]
[1721195051752,0.00184,65910.0,65909.0,1.71233542]
[1721195052119,0.00184,65910.0,65909.0,1.49343542]
[1721195052328,0.00184,65910.0,65909.0,1.65163542]
[1721195056630,0.00184,65910.0,65909.0,1.95508579]
[1721195058875,0.00184,65910.0,65909.0,1.87738579]
[1721195059018,0.15134,65910.0,65909.0,1.35503779]
[1721195059225,0.15134,65910.0,65909.0,1.20065605]
[1721195059625,0.15342085,65910.0,65909.0,0.89720805]
[1721195059831,0.15342085,65910.0,65909.0,0.13858805]
[1721195060032,0.15342085,65910.0,65909.0,0.13758805]
[1721195060254,0.15342085,65910.0,65909.0,0.01161857]
[1721195060453,0.15342085,65910.0,65909.0,0.16434257]
[1721195060652,0.15242085,65910.0,65909.0,0.16334257]
[1721195061082,0.18042085,65910.0,65909.0,0.16334257]
[1721195061250,0.16642085,65910.0,65909.0,0.16334257]
[1721195061629,0.16642085,65910.0,65909.0,0.01161857]
[1721195062015,0.06748085,65909.0,65908.0,0.151726]
[1721195063300,0.08048085,65909.0,65908.0,0.151726]
[1721195064028,0.06368085,65908.0,65907.0,0.151728]
[1721195064428,0.14558085,65908.0,65907.0,0.151728]
[1721195064644,0.025,65909.0,65906.0,0.000924]
[1721195064645,0.00208085,65907.0,65906.0,0.000924]
[1721195064854,0.60076585,65907.0,65906.0,0.000924]
[1721195065074,1.36206159,65907.0,65906.0,0.000924]
[1721195065274,1.58346934,65907.0,65906.0,0.000924]
[1721195065475,1.51635929,65907.0,65906.0,0.000924]
[1721195065793,1.21290229,65907.0,65906.0,0.000924]
[1721195066535,1.51635929,65907.0,65906.0,0.000924]
[1721195066735,1.62984757,65907.0,65906.0,0.000924]
[1721195066996,1.63984757,65907.0,65906.0,0.000924]
[1721195067386,1.61710807,65907.0,65906.0,0.000924]
[1721195067615,1.60710807,65907.0,65906.0,0.000924]
[1721195067820,1.63552103,65907.0,65906.0,0.000924]
[1721195068030,1.63552108,65907.0,65906.0,0.000924]
[1721195068446,1.5210334,65907.0,65906.0,0.000924]
[1721195069040,1.81613178,65907.0,65906.0,0.000924]
[1721195069239,1.74912417,65907.0,65906.0,0.000924]
[1721195069444,2.05258117,65907.0,65906.0,0.000924]
[1721195069998,1.41772285,65903.0,65902.0,0.000924]
[1721195070221,1.8694176,65903.0,65902.0,0.000924]
[1721195070851,1.86977583,65903.0,65902.0,0.000924]
[1721195071364,1.89477932,65903.0,65902.0,0.000924]
[1721195071737,1.81977932,65903.0,65902.0,0.000924]
[1721195071941,1.83377932,65903.0,65902.0,0.000924]
[1721195072345,2.07866554,65903.0,65902.0,0.000924]
[1721195072548,1.92431597,65903.0,65902.0,0.000924]
[1721195072762,1.83377932,65903.0,65902.0,0.000924]
[1721195072954,1.81003812,65903.0,65902.0,0.000924]
[1721195073162,1.82403812,65903.0,65902.0,0.000924]
[1721195073351,1.89191774,65903.0,65902.0,0.000924]
[1721195074090,1.94227373,65903.0,65902.0,0.000924]
[1721195074555,1.87439411,65903.0,65902.0,0.000924]
[1721195075159,1.84639411,65903.0,65902.0,0.000924]
[1721195075359,1.89162049,65903.0,65902.0,0.000924]
[1721195075585,1.90562049,65903.0,65902.0,0.000924]
[1721195076125,1.86039411,65903.0,65902.0,0.000924]
[1721195076351,1.47522859,65903.0,65902.0,0.000924]
[1721195076556,1.17175259,65903.0,65902.0,0.000924]
[1721195076961,1.15775259,65903.0,65902.0,0.000924]
[1721195077286,0.15868085,65903.0,65902.0,0.000924]
[1721195077658,0.15868085,65903.0,65902.0,0.01422308]
[1721195077659,0.17268085,65903.0,65902.0,0.01422308]
[1721195077859,0.17268085,65903.0,65902.0,0.000924]
[1721195077860,0.18668085,65903.0,65902.0,0.000924]
[1721195078075,0.18668085,65903.0,65902.0,0.01422308]
[1721195078259,0.18668085,65903.0,65902.0,0.000924]
[1721195078458,0.20068085,65903.0,65902.0,0.000924]
[1721195079448,0.15868085,65903.0,65902.0,0.000924]
[1721195079854,0.17268085,65903.0,65902.0,0.000924]
[1721195080057,0.17268085,65903.0,65902.0,0.01422308]
[1721195080260,0.03008085,65903.0,65902.0,0.000924]
[1721195080468,0.028,65903.0,65902.0,0.46944308]
[1721195080693,0.028,65903.0,65902.0,0.842024]
[1721195080922,0.028,65903.0,65902.0,0.55184308]
[1721195081264,0.03008085,65903.0,65902.0,0.55184308]
[1721195081460,0.028,65903.0,65902.0,0.55184308]
[1721195081600,0.028,65903.0,65902.0,0.85532308]
[1721195081815,0.014,65903.0,65902.0,0.85532308]
[1721195082062,0.00208085,65906.0,65905.0,0.4552]
[1721195082264,0.00208085,65908.0,65907.0,0.151728]
[1721195082705,0.00208085,65908.0,65907.0,0.16501228]
[1721195083319,0.00208085,65908.0,65907.0,0.01328428]
[1721195083492,0.15646259,65908.0,65902.0,0.000924]
[1721195083695,0.00208085,65903.0,65902.0,0.000924]
[1721195083907,0.00208085,65903.0,65902.0,0.01422308]
[1721195084108,0.01508085,65903.0,65902.0,0.01422308]
[1721195085434,0.02908085,65903.0,65902.0,0.16596308]
[1721195085635,0.02908085,65903.0,65902.0,0.46944308]
[1721195085864,0.027,65903.0,65902.0,0.77292308]
[1721195086055,0.027,65903.0,65902.0,0.85392308]
[1721195086620,0.02908085,65903.0,65902.0,0.85392308]
[1721195087093,0.027,65903.0,65902.0,0.85392308]
[1721195088892,0.02908085,65903.0,65902.0,0.77292308]
[1721195089289,0.02908085,65903.0,65902.0,0.46944308]
[1721195090377,0.17628085,65903.0,65902.0,0.01422308]
[1721195090606,0.09368085,65903.0,65902.0,0.01422308]
[1721195090804,0.09368085,65903.0,65902.0,0.000924]
[1721195093003,0.54889485,65903.0,65902.0,0.000924]
[1721195093206,0.09368085,65903.0,65902.0,0.000924]
[1721195093599,0.09368085,65903.0,65902.0,0.01422308]
[1721195094716,0.02908085,65903.0,65902.0,0.01422308]
[1721195094925,0.02908085,65903.0,65902.0,0.46944308]
[1721195094926,0.027,65903.0,65902.0,0.46944308]
[1721195095121,0.027,65903.0,65902.0,0.77292308]
[1721195095341,0.02908085,65903.0,65902.0,0.77292308]
[1721195095542,0.027,65903.0,65902.0,0.77292308]
[1721195097556,0.02908085,65903.0,65902.0,0.77292308]
[1721195098079,0.027,65903.0,65902.0,0.77292308]
[1721195100279,0.02908085,65903.0,65902.0,0.77292308]
[1721195103744,0.09248085,65903.0,65902.0,0.46944308]
[1721195104983,0.02908085,65903.0,65902.0,0.46944308]
[1721195106343,0.33046259,65903.0,65902.0,0.01422308]
[1721195106554,1.08915259,65903.0,65902.0,0.01422308]
[1721195106755,1.08915259,65903.0,65902.0,0.000924]
[1721195107480,1.11888947,65903.0,65902.0,0.000924]
[1721195108026,0.20581773,65903.0,65902.0,0.000924]
[1721195108224,0.09338085,65903.0,65902.0,0.000924]
[1721195108428,0.09338085,65903.0,65902.0,0.01422308]
[1721195108809,0.09338085,65903.0,65902.0,0.16596308]
[1721195109007,0.02908085,65903.0,65902.0,0.16596308]
[1721195109211,0.02908085,65903.0,65902.0,0.46944308]
[1721195109632,0.02908085,65903.0,65902.0,0.77292308]
[1721195110021,0.027,65903.0,65902.0,1.07640308]
[1721195110225,0.027,65903.0,65902.0,1.72578397]
[1721195110450,0.027,65903.0,65902.0,1.85176961]
[1721195110690,0.027,65903.0,65902.0,2.15524961]
[1721195111330,0.00084,65910.0,65909.0,0.24791915]
[1721195111534,0.46304871,65926.0,65925.0,0.455062]
[1721195111739,0.027,65936.0,65925.0,0.80259769]
[1721195111945,0.027,65936.0,65935.0,0.454993]
[1721195112141,0.46512956,65943.0,65942.0,0.151648]
[1721195112344,0.00208085,65943.0,65942.0,0.454944]
[1721195112594,0.00208085,65943.0,65942.0,0.46864309]
[1721195112999,0.00208085,65943.0,65942.0,0.77193909]
[1721195113200,0.00084,65949.0,65947.0,0.151636]
[1721195113201,0.00208085,65948.0,65947.0,0.151636]
[1721195113557,0.00208085,65948.0,65947.0,0.46859331]
[1721195115279,0.45973159,65948.0,65947.0,0.01368431]
[1721195115393,0.61136559,65948.0,65947.0,0.01368431]
[1721195115592,0.62236559,65948.0,65947.0,0.001]
[1721195116424,0.63636559,65948.0,65947.0,0.002]
[1721195117634,0.17871485,65948.0,65947.0,0.002]
[1721195117901,0.02708085,65948.0,65947.0,0.002]
[1721195118124,0.02708085,65948.0,65947.0,0.01568431]
[1721195118125,0.17871485,65948.0,65947.0,0.01568431]
[1721195118333,0.48198385,65948.0,65947.0,0.002]
[1721195118540,0.02708085,65948.0,65947.0,0.01291489]
[1721195118743,0.17871485,65948.0,65947.0,0.002]
[1721195118952,0.02708085,65948.0,65947.0,0.002]
[1721195119365,0.17871485,65948.0,65947.0,0.01291489]
[1721195119491,0.17871485,65948.0,65947.0,0.002]
[1721195119692,0.17871485,65948.0,65947.0,0.01291489]
[1721195119891,0.17871485,65948.0,65947.0,0.002]
[1721195120138,0.17871485,65948.0,65947.0,0.01291489]
[1721195120316,0.17871485,65948.0,65947.0,0.002]
[1721195120692,0.02708085,65948.0,65947.0,0.002]
[1721195122576,0.24806259,65948.0,65947.0,0.002]
[1721195122786,1.18907415,65948.0,65947.0,0.002]
[1721195123782,1.00927415,65948.0,65947.0,0.002]
[1721195124036,0.70296559,65948.0,65947.0,0.002]
[1721195124239,1.00623459,65948.0,65947.0,0.002]
[1721195124437,0.70296559,65948.0,65947.0,0.002]
[1721195124916,1.10623459,65948.0,65947.0,0.002]
[1721195125591,0.02708085,65948.0,65947.0,0.002]
[1721195125734,0.17871485,65948.0,65947.0,0.002]
[1721195126491,0.17955485,65948.0,65947.0,0.002]
[1721195127239,0.78609285,65948.0,65947.0,0.002]
[1721195127442,1.93629587,65948.0,65947.0,0.002]
[1721195127648,0.90666085,65930.0,65929.0,0.04995997]
[1721195127852,1.36439459,65930.0,65929.0,0.04995997]
[1721195128065,0.00208085,65920.0,65919.0,0.151699]
[1721195128485,0.00208085,65920.0,65916.0,0.04954362]
[1721195128718,0.00208085,65916.0,65915.0,0.15171]
[1721195128940,0.00208085,65917.0,65916.0,0.151708]
[1721195129147,0.00208085,65918.0,65917.0,0.151705]
[1721195129482,0.00208085,65920.0,65918.0,0.151701]
[1721195129658,0.151693,65923.0,65918.0,0.151701]
[1721195129659,0.00208085,65919.0,65918.0,0.151701]
[1721195130362,0.00208085,65917.0,65916.0,0.151707]
[1721195130562,0.01308085,65918.0,65917.0,0.151705]
[1721195130778,0.011,65918.0,65917.0,0.151705]
[1721195130978,0.011,65918.0,65917.0,1.061938]
[1721195131854,0.021,65918.0,65917.0,0.758527]
[1721195132082,0.021,65918.0,65917.0,0.151705]
[1721195132083,0.02308085,65918.0,65917.0,0.151705]
[1721195132285,0.02308085,65918.0,65910.0,0.000924]
[1721195132286,0.00208085,65912.0,65910.0,0.304366]
[1721195132468,0.00208085,65913.0,65912.0,0.125417]
[1721195132808,0.00208085,65913.0,65912.0,0.428851]
[1721195133207,0.00208085,65914.0,65913.0,0.455145]
[1721195134477,0.00208085,65916.0,65915.0,0.15171]
[1721195135965,0.01308085,65916.0,65915.0,0.15171]
[1721195136861,0.01208085,65916.0,65915.0,0.15171]
[1721195137065,0.02508085,65916.0,65915.0,0.15171]
[1721195137646,0.02508085,65916.0,65913.0,0.30343]
[1721195137647,0.00208085,65914.0,65913.0,0.30343]
[1721195139313,0.01208085,65914.0,65913.0,0.455145]
[1721195139713,0.02108085,65914.0,65913.0,0.455145]
[1721195140121,0.03008085,65914.0,65913.0,0.455145]
[1721195140327,0.02008085,65914.0,65913.0,0.455145]
[1721195140960,0.01108085,65914.0,65913.0,0.455145]
[1721195141142,0.01908085,65914.0,65913.0,0.455145]
[1721195141902,0.02908085,65914.0,65913.0,0.455145]
[1721195142100,0.008,65914.0,65913.0,0.758575]
[1721195142662,0.00208085,65911.0,65910.0,0.152646]
[1721195142904,0.15379985,65911.0,65910.0,0.000924]
[1721195143142,0.97685959,65911.0,65910.0,0.000924]
[1721195143347,1.28029859,65911.0,65910.0,0.000924]
[1721195144145,1.36829859,65911.0,65910.0,0.000924]
[1721195145544,1.87128493,65911.0,65910.0,0.000924]
[1721195145753,2.27472393,65911.0,65910.0,0.000924]
[1721195145885,2.30502784,65911.0,65910.0,0.000924]
[1721195146089,2.35677075,65911.0,65910.0,0.000924]
[1721195146283,2.33377075,65911.0,65910.0,0.000924]
[1721195146511,2.36489358,65911.0,65910.0,0.000924]
[1721195146735,2.31977075,65911.0,65910.0,0.000924]
[1721195147268,2.33377075,65911.0,65910.0,0.000924]
[1721195147467,2.22993009,65911.0,65910.0,0.000924]
[1721195147684,2.19879677,65911.0,65910.0,0.000924]
[1721195148013,2.17505386,65911.0,65910.0,0.000924]
[1721195148380,2.17505442,65911.0,65910.0,0.000924]
[1721195148550,2.32940399,65911.0,65910.0,0.000924]
[1721195149135,2.34340399,65911.0,65910.0,0.000924]
[1721195150153,2.34337572,65911.0,65910.0,0.000924]
[1721195150982,2.18902615,65911.0,65910.0,0.000924]
[1721195151185,1.88558715,65911.0,65910.0,0.000924]
[1721195151813,0.00208085,65885.0,65883.0,0.00277097]
[1721195152033,0.00208085,65885.0,65882.0,0.05884242]
[1721195152034,0.61484015,65885.0,65882.0,0.05884242]
[1721195152241,1.21891859,65885.0,65882.0,0.009207]
[1721195152410,1.31891859,65885.0,65882.0,0.009207]
[1721195153200,1.33291859,65885.0,65882.0,0.009207]
[1721195153424,1.34691859,65885.0,65882.0,0.009207]
[1721195153647,1.33291859,65885.0,65882.0,0.009207]
[1721195154095,1.34691859,65885.0,65882.0,0.009207]
[1721195155892,1.50126816,65885.0,65882.0,0.009207]
[1721195156872,1.80482716,65885.0,65882.0,0.009207]
[1721195157338,1.96181261,65885.0,65882.0,0.009207]
[1721195157586,2.00329998,65885.0,65882.0,0.009207]
[1721195158786,1.98929998,65885.0,65882.0,0.009207]
[1721195159235,1.79895041,65885.0,65882.0,0.009207]
[1721195159461,1.78495041,65885.0,65882.0,0.009207]
[1721195159728,1.78495041,65885.0,65876.0,0.000924]
[1721195159729,1.72185885,65877.0,65876.0,0.000924]
[1721195159960,2.23594059,65877.0,65876.0,0.000924]
[1721195160184,2.43211409,65877.0,65876.0,0.000924]
[1721195160408,2.58646366,65877.0,65876.0,0.000924]
[1721195161112,2.60046366,65877.0,65876.0,0.000924]
[1721195162484,2.61446366,65877.0,65876.0,0.000924]
[1721195162715,2.60046366,65877.0,65876.0,0.000924]
[1721195162949,3.10046366,65877.0,65876.0,0.000924]
[1721195163206,3.11446366,65877.0,65876.0,0.000924]
[1721195163434,3.08646366,65877.0,65876.0,0.000924]
[1721195163665,3.10046366,65877.0,65876.0,0.000924]
[1721195163869,3.11446366,65877.0,65876.0,0.000924]
[1721195164078,2.96011409,65877.0,65876.0,0.000924]
[1721195164246,2.46011409,65877.0,65876.0,0.000924]
[1721195164794,2.44611409,65877.0,65876.0,0.000924]
[1721195165598,2.46011409,65877.0,65876.0,0.000924]
[1721195165827,2.43211409,65877.0,65876.0,0.000924]
[1721195166025,2.58646366,65877.0,65876.0,0.000924]
[1721195166226,2.60046366,65877.0,65876.0,0.000924]
[1721195167142,2.61446366,65877.0,65876.0,0.000924]
[1721195167530,2.58646366,65877.0,65876.0,0.000924]
[1721195167931,2.60046366,65877.0,65876.0,0.000924]
[1721195168979,2.60046366,65877.0,65864.0,0.0001]
[1721195168980,1.86506085,65865.0,65864.0,0.0001]
[1721195169188,1.15047085,65863.0,65862.0,1e-06]
[1721195169389,2.04319035,65863.0,65862.0,1e-06]
[1721195169649,2.40827288,65863.0,65862.0,1e-06]
[1721195170589,1.86344436,65863.0,65862.0,1e-06]
[1721195170784,1.77983259,65863.0,65862.0,1e-06]
[1721195170990,1.82983259,65863.0,65862.0,1e-06]
[1721195171262,1.96545805,65863.0,65862.0,1e-06]
[1721195171476,1.97945805,65863.0,65862.0,1e-06]
[1721195172251,1.92945805,65863.0,65862.0,1e-06]
[1721195172707,1.95145805,65863.0,65862.0,1e-06]
[1721195172835,1.96545805,65863.0,65862.0,1e-06]
[1721195173193,2.28311805,65863.0,65862.0,1e-06]
[1721195173331,2.26911805,65863.0,65862.0,1e-06]
[1721195173737,2.29711805,65863.0,65862.0,1e-06]
[1721195174050,2.57277805,65863.0,65862.0,1e-06]
[1721195174280,2.59084482,65863.0,65862.0,1e-06]
[1721195174617,2.59348969,65863.0,65862.0,1e-06]
[1721195174829,1.75567085,65858.0,65857.0,5.5e-07]
[1721195175008,2.16440216,65858.0,65857.0,5.5e-07]
[1721195175380,2.77176816,65858.0,65857.0,5.5e-07]
[1721195175966,2.77176816,65858.0,65846.0,0.009207]
[1721195175967,0.50768185,65847.0,65846.0,0.009207]
[1721195176167,0.05,65839.0,65835.0,0.04959745]
[1721195176393,0.15398685,65830.0,65821.0,0.082]
[1721195176591,1.01599259,65830.0,65821.0,0.082]
[1721195176797,1.31980459,65830.0,65821.0,0.13117614]
[1721195176957,1.36980459,65830.0,65821.0,0.13117614]